bitfinex/quotes_ETHUSD_20240730
["timestamp","ask_amount","ask_price","bid_price","bid_amount"]
[1722351016158,3.0,3318.1,3316.5,7.37]
[1722351016389,3.01496,3316.8,3316.5,7.37]
[1722351016595,3.01496,3316.8,3315.7,3.219]
[1722351016596,3.01496,3316.8,3316.1,15.46552]
[1722351016797,3.01442,3317.4,3316.1,12.45]
[1722351017002,3.01532,3316.4,3316.1,12.45]
[1722351017211,3.01545,3316.3,3315.7,3.01594]
[1722351017413,3.01528,3316.5,3315.9,3.01576]
[1722351017686,7.399842,3317.3,3316.0,0.06030623]
[1722351017886,3.01437,3317.5,3316.3,5.45578]
[1722351018075,3.0145,3317.3,3316.8,3.01495]
[1722351018291,3.01437,3317.5,3316.9,3.07509095]
[1722351018466,3.01418,3317.7,3316.9,0.06029095]
[1722351018650,6.01398,3317.9,3317.2,3.01455]
[1722351018651,3.01405,3317.8,3317.2,3.01455]
[1722351018998,3.01382,3318.1,3317.3,3.01444]
[1722351019297,3.01396,3317.9,3317.3,3.01444]
[1722351019473,3.01396,3317.9,3317.3,3.074724]
[1722351019650,3.0142,3317.7,3317.2,0.0602833]
[1722351019996,3.0141,3317.8,3317.2,3.07484405]
[1722351020287,3.01381,3318.1,3317.3,5.36468]
[1722351020448,3.01363,3318.3,3317.4,0.06027951]
[1722351020652,3.01373,3318.2,3317.6,3.01421]
[1722351021089,0.5086957,3318.5,3317.4,0.06027951]
[1722351021277,3.01382,3318.1,3317.7,0.03878534]
[1722351021588,3.01361,3318.3,3317.8,0.03873974]
[1722351021759,3.01361,3318.3,3317.8,3.07430432]
[1722351022100,3.01386,3318.0,3317.9,0.03869671]
[1722351022346,3.5221257,3318.5,3317.1,10.38462]
[1722351022347,3.01427,3317.6,3317.1,7.37]
[1722351022664,3.01402,3317.9,3317.2,3.01454]
[1722351022937,0.5086957,3318.5,3317.2,3.01454]
[1722351022938,0.5086957,3318.5,3317.7,3.01407]
[1722351023104,0.5086957,3318.5,3317.8,0.06027004]
[1722351023305,0.5086957,3318.5,3317.7,2.3087]
[1722351023306,3.01345,3318.5,3317.7,2.3087]
[1722351023511,3.01327,3318.7,3317.8,0.06026913]
[1722351023712,3.01305,3318.9,3317.7,2.3087]
[1722351024019,3.01301,3319.0,3317.9,0.06026732]
[1722351024247,3.01301,3319.0,3318.4,3.01345]
[1722351024422,3.01306,3318.9,3317.8,0.23087]
[1722351024626,5.76991254,3319.6,3317.8,0.23087]
[1722351024627,3.01282,3319.2,3318.2,3.01361]
[1722351024820,3.01283,3319.2,3318.5,3.01336]
[1722351025248,3.01283,3319.2,3318.6,3.07354898]
[1722351025458,3.01283,3319.2,3318.6,0.06025898]
[1722351025761,3.01283,3319.2,3318.6,3.01331]
[1722351025961,0.31542091,3320.0,3318.7,0.06025752]
[1722351026170,3.01238,3319.7,3319.0,3.01288]
[1722351026466,2.3176,3320.1,3318.6,2.881575]
[1722351026467,3.01219,3319.9,3319.3,3.01262]
[1722351026617,3.01228,3319.8,3319.3,0.0602466]
[1722351026820,3.01228,3319.8,3319.3,3.0729166]
[1722351027620,3.01228,3319.8,3319.3,0.0602466]
[1722351027850,3.01237,3319.7,3319.2,0.06024575]
[1722351028028,3.01241,3319.6,3319.2,0.06024575]
[1722351028228,0.23176,3320.0,3319.2,0.06024575]
[1722351028434,6.0246,3319.8,3319.1,3.01281]
[1722351028636,3.24384,3320.0,3319.2,3.07300577]
[1722351028880,3.01216,3319.9,3319.3,3.07291573]
[1722351029171,3.01208,3320.0,3319.4,3.01258]
[1722351029382,3.01208,3320.0,3319.5,0.0602425]
[1722351029721,3.01208,3320.0,3319.5,3.0727225]
[1722351029924,3.01188,3320.2,3319.6,3.07261191]
[1722351030184,3.0121,3320.0,3319.6,0.06024191]
[1722351030326,3.01233,3319.7,3319.0,3.0129]
[1722351030664,3.01233,3319.7,3319.2,3.01277]
[1722351030975,0.55229607,3320.2,3318.2,3.31615]
[1722351030976,3.01261,3319.4,3318.8,3.01307]
[1722351031465,3.01268,3319.3,3318.8,3.01307]
[1722351031676,3.01268,3319.3,3318.6,5.29218]
[1722351031677,3.01293,3319.1,3318.6,2.2789]
[1722351031969,10.48172,3320.4,3318.6,5.29221]
[1722351032152,4.94904157,3320.3,3318.9,7.37]
[1722351032351,3.01208,3320.0,3319.2,3.01277]
[1722351032556,3.01223,3319.8,3319.3,0.06024548]
[1722351032755,3.01223,3319.8,3319.2,3.01269]
[1722351032921,3.01208,3320.0,3319.3,0.06024548]
[1722351033123,4.94904157,3320.3,3319.5,3.01245]
[1722351033124,3.012,3320.1,3319.5,3.01245]
[1722351033323,3.01188,3320.2,3319.6,3.07263966]
[1722351033543,0.5086957,3320.5,3319.6,3.07263966]
[1722351033544,3.01171,3320.4,3319.6,3.07263966]
[1722351033996,0.5086957,3320.5,3319.2,3.01272]
[1722351034196,3.0122,3319.9,3319.3,3.01262]
[1722351034485,3.01214,3319.9,3319.3,3.01262]
[1722351034718,3.012,3320.1,3319.5,3.01244]
[1722351034981,3.01178,3320.3,3319.7,3.01231]
[1722351035402,3.01157,3320.6,3319.8,0.06023539]
[1722351035546,3.01157,3320.6,3319.9,3.01213]
[1722351036042,3.01157,3320.6,3319.8,3.01222]
[1722351036043,3.01168,3320.4,3319.8,3.01222]
[1722351036250,3.01168,3320.4,3320.0,0.07641643]
[1722351036473,3.01168,3320.4,3319.9,0.07646058]
[1722351036684,3.01168,3320.4,3320.1,0.07637228]
[1722351036904,3.01168,3320.4,3320.0,0.07641643]
[1722351037069,3.01168,3320.4,3320.2,0.07632813]
[1722351037300,3.01168,3320.4,3319.8,3.01217]
[1722351037301,3.01157,3320.6,3320.1,0.07637228]
[1722351037483,3.01157,3320.6,3320.2,0.07632813]
[1722351037680,3.01174,3320.4,3319.6,10.38232]
[1722351037917,3.613834,3320.6,3319.6,10.38232]
[1722351038124,3.01173,3320.4,3319.7,3.08878889]
[1722351038423,3.01173,3320.4,3319.9,3.01208]
[1722351038424,3.0117,3320.4,3319.9,3.01208]
[1722351038815,6.02345,3320.4,3320.0,0.07641643]
[1722351038997,3.01137,3320.8,3320.2,3.01186]
[1722351039202,3.01124,3320.9,3320.4,3.01168]
[1722351039422,3.01124,3320.9,3320.5,0.06022558]
[1722351039723,3.01158,3320.6,3320.5,0.07619571]
[1722351039882,3.0115,3320.6,3319.9,5.40068]
[1722351040083,0.301108,3321.0,3319.9,2.3886]
[1722351040390,3.01154,3320.6,3320.0,0.07578977]
[1722351040595,3.01164,3320.5,3319.8,3.01214]
[1722351040815,3.01107,3321.1,3320.1,0.07574562]
[1722351041032,3.01152,3320.6,3320.0,3.01197]
[1722351041199,3.01173,3320.4,3320.2,0.07570147]
[1722351041527,0.55,3321.0,3320.0,3.01198]
[1722351041833,3.01079,3321.4,3320.4,3.01168]
[1722351041834,3.01123,3320.9,3320.4,3.01168]
[1722351042042,3.01109,3321.1,3320.1,0.301198]
[1722351042185,3.01128,3320.9,3320.5,0.07557162]
[1722351042389,6.02239,3321.0,3320.3,3.01176]
[1722351042700,0.5086957,3321.5,3320.1,3.01189]
[1722351042701,3.01142,3320.7,3320.1,3.01189]
[1722351043114,3.01142,3320.7,3320.2,0.07570404]
[1722351043321,3.01174,3320.4,3320.2,0.07570404]
[1722351043488,3.01161,3320.5,3319.8,3.0122]
[1722351043690,3.01092,3321.3,3319.6,7.37]
[1722351043691,3.012,3320.1,3319.6,7.37]
[1722351043928,3.0118,3320.3,3319.9,0.07583649]
[1722351044128,3.01196,3320.1,3319.6,3.01236]
[1722351044312,3.01196,3320.1,3319.7,0.0759171]
[1722351044518,3.01196,3320.1,3320.0,0.07578464]
[1722351044519,6.024,3320.1,3320.0,0.07578464]
[1722351044846,3.01228,3319.8,3319.2,10.38272]
[1722351045047,3.01228,3319.8,3319.2,6.02542]
[1722351045333,3.01228,3319.8,3319.3,0.07617845]
[1722351045830,3.01241,3319.6,3319.3,0.07617845]
[1722351046338,3.0127,3319.3,3318.9,22.2156]
[1722351046548,3.0,3320.4,3318.5,7.37]
[1722351046549,3.01323,3318.7,3318.5,7.37]
[1722351046851,3.01298,3319.0,3318.0,7.37]
[1722351047003,3.0129,3319.1,3318.6,3.0873469]
[1722351047347,3.0129,3319.1,3318.3,3.01354]
[1722351047348,3.0129,3319.1,3318.7,0.07399271]
[1722351047654,3.01233,3319.7,3318.5,3.01334]
[1722351047819,3.01285,3319.2,3318.8,0.07394853]
[1722351048006,3.01261,3319.4,3318.8,3.01311]
[1722351048206,3.01245,3319.6,3318.9,3.14712791]
[1722351048522,3.01229,3319.8,3318.9,3.08687435]
[1722351048726,3.01229,3319.8,3319.2,3.01276]
[1722351049042,3.01239,3319.7,3319.0,3.08687098]
[1722351049551,3.01219,3319.9,3319.1,3.01281]
[1722351049751,3.01241,3319.6,3319.0,3.08693098]
[1722351049909,3.01241,3319.6,3319.1,0.0739568]
[1722351050246,9.7271,3320.5,3319.1,0.0739568]
[1722351050557,3.01243,3319.6,3319.1,0.0739568]
[1722351050724,3.01219,3319.9,3319.3,3.01266]
[1722351050926,3.01225,3319.8,3319.2,0.07384606]
[1722351051119,3.01225,3319.8,3319.2,3.08653606]
[1722351051324,0.55,3320.3,3319.4,3.01254]
[1722351051325,3.0119,3320.2,3319.4,3.01254]
[1722351051534,3.01197,3320.1,3319.5,3.07273285]
[1722351051733,6.02401,3320.1,3319.5,3.14645153]
[1722351051934,3.01199,3320.1,3319.5,0.07371868]
[1722351052245,3.01199,3320.1,3319.4,0.06024286]
[1722351052458,3.01199,3320.1,3319.6,0.07359004]
[1722351052754,3.01199,3320.1,3319.6,3.01239]
[1722351052972,3.38699,3320.1,3319.7,0.07354588]
[1722351053119,3.38699,3320.1,3319.7,3.02484588]
[1722351053120,0.375,3320.1,3319.7,3.02484588]
[1722351053319,0.375,3320.1,3319.9,3.01205]
[1722351053584,0.375,3320.1,3320.0,3.01204]
[1722351053774,0.375,3320.1,3320.0,3.14365436]
[1722351053919,0.375,3320.1,3320.0,0.13161436]
[1722351054120,0.375,3320.1,3320.0,0.07138009]
[1722351054431,3.38695,3320.1,3319.5,3.01245]
[1722351054621,0.375,3320.1,3320.0,0.0713161]
[1722351054818,0.375,3320.1,3319.3,7.37]
[1722351055018,0.375,3320.1,3320.0,3.0833561]
[1722351055261,0.375,3320.1,3319.7,3.01226]
[1722351055469,0.375,3320.1,3320.0,0.0713161]
[1722351055620,0.375,3320.1,3319.4,3.74956]
[1722351055827,0.375,3320.1,3320.0,0.0713161]
[1722351056046,0.375,3320.1,3320.0,3.07227421]
[1722351056252,0.375,3320.1,3320.0,3.14359031]
[1722351056565,0.375,3320.1,3320.0,3.75202473]
[1722351056778,0.375,3320.1,3320.0,6.70383052]
[1722351056926,0.375,3320.1,3320.0,9.16546413]
[1722351057378,0.375,3320.1,3320.0,12.17750413]
[1722351057529,0.375,3320.1,3320.0,9.16546413]
[1722351057862,0.375,3320.1,3320.0,9.10523052]
[1722351059775,0.375,3320.1,3320.0,2.4727161]
[1722351060020,0.375,3320.1,3320.0,0.0713161]
[1722351060179,0.375,3320.1,3319.0,2.4867]
[1722351060365,3.01218,3319.9,3319.3,3.01263]
[1722351060559,3.01218,3319.9,3319.2,3.01272]
[1722351060560,3.01232,3319.7,3319.2,3.01272]
[1722351060799,3.01232,3319.7,3319.0,5.49956]
[1722351061005,3.652109,3319.9,3319.4,0.07132606]
[1722351061306,0.639919,3319.9,3319.4,3.01259]
[1722351061494,0.375,3320.1,3319.7,3.01225]
[1722351061676,0.375,3320.1,3319.8,3.01217]
[1722351061886,0.375,3320.1,3319.8,3.08339618]
[1722351062116,0.375,3320.1,3319.8,0.07122618]
[1722351062399,0.375,3320.1,3319.6,3.01236]
[1722351062612,0.375,3320.1,3319.9,0.07124857]
[1722351062771,0.375,3320.1,3319.6,3.01235]
[1722351062772,0.375,3320.1,3319.7,3.0123]
[1722351062978,0.375,3320.1,3320.0,0.07120442]
[1722351063166,0.375,3320.1,3319.7,3.0123]
[1722351063363,0.375,3320.1,3320.0,0.07120442]
[1722351063674,0.375,3320.1,3319.6,3.0124]
[1722351063901,0.375,3320.1,3320.0,0.07120442]
[1722351064103,0.375,3320.1,3319.7,3.01227]
[1722351064403,0.375,3320.1,3319.9,3.01207]
[1722351064617,0.375,3320.1,3319.8,3.08351272]
[1722351064766,0.375,3320.1,3320.0,0.07118138]
[1722351064960,0.375,3320.1,3319.8,6.02433]
[1722351065199,0.375,3320.1,3320.0,3.08322138]
[1722351065402,0.375,3320.1,3320.0,6.39865686]
[1722351065603,0.375,3320.1,3320.0,6.46983824]
[1722351065897,0.375,3320.1,3320.0,6.40960692]
[1722351066476,0.375,3320.1,3320.0,0.38552692]
[1722351066661,0.375,3320.1,3320.0,0.07118138]
[1722351067062,0.375,3320.1,3319.8,3.01214]
[1722351067305,0.375,3320.1,3320.0,0.07101248]
[1722351067504,0.375,3320.1,3319.9,0.07103872]
[1722351067672,1.44932088,3320.0,3319.1,3.01281]
[1722351067878,3.01229,3319.8,3319.2,3.01269]
[1722351068080,0.18243209,3319.9,3319.3,3.01267]
[1722351068412,1.44905946,3319.8,3319.3,3.01267]
[1722351068607,4.4608785,3319.7,3319.1,3.0128]
[1722351068814,3.01243,3319.6,3319.1,3.0128]
[1722351069111,0.18243209,3319.9,3318.9,3.01298]
[1722351069112,3.01254,3319.5,3318.9,3.01298]
[1722351069313,6.02475,3319.7,3319.0,6.01289]
[1722351069511,4.46091577,3319.6,3319.0,6.01289]
[1722351069666,1.44849577,3319.5,3319.0,6.01289]
[1722351069868,0.18243209,3319.9,3319.3,3.01263]
[1722351070178,1.44847249,3319.8,3319.0,3.833049]
[1722351070382,0.375,3320.1,3319.7,3.0123]
[1722351070691,1.44900108,3320.0,3319.8,3.01221]
[1722351070908,1.44900108,3320.0,3319.2,3.01273]
[1722351070909,1.44900108,3320.0,3319.5,3.01244]
[1722351071219,1.44900108,3320.0,3319.6,3.0124]
[1722351071878,4.46109108,3320.0,3319.5,3.01248]
[1722351072076,1.44900108,3319.9,3319.3,3.0126]
[1722351072412,1.44900108,3319.9,3319.5,3.01249]
[1722351072776,4.46115108,3319.9,3319.4,3.01256]
[1722351072982,0.375,3320.1,3319.4,3.01256]
[1722351072983,1.44900108,3319.8,3319.4,3.01254]
[1722351073176,1.44900108,3319.7,3319.3,3.01263]
[1722351073512,3.01214,3319.9,3319.3,3.0126]
[1722351073677,4.46076919,3319.8,3319.2,3.01277]
[1722351073882,3.01214,3319.9,3318.9,6.219]
[1722351073883,3.0125,3319.5,3318.9,3.0]
[1722351074137,3.01305,3318.9,3318.2,2.4561]
[1722351074293,3.01326,3318.7,3318.0,3.0138]
[1722351074613,3.01271,3319.3,3318.7,3.0132]
[1722351074614,3.01276,3319.3,3318.7,3.0132]
[1722351074834,1.44767655,3319.2,3318.1,3.01373]
[1722351075128,1.44767655,3319.2,3318.3,3.01351]
[1722351075129,3.01311,3318.9,3318.3,3.01351]
[1722351075270,4.76211755,3318.8,3318.2,3.01362]
[1722351075599,6.03766,3319.8,3317.8,3.561]
[1722351075600,3.01356,3318.4,3317.8,3.561]
[1722351076120,3.01356,3318.4,3316.7,3.64654127]
[1722351076121,3.01373,3318.2,3317.6,3.01417]
[1722351076327,3.01359,3318.3,3317.7,3.01407]
[1722351077326,1.44618456,3319.1,3318.7,3.01317]
[1722351077468,1.44618456,3319.0,3318.7,3.01317]
[1722351077669,3.01279,3319.2,3318.5,6.02672]
[1722351077901,1.44659348,3319.1,3318.6,3.01331]
[1722351078268,3.01296,3319.0,3318.2,3.01361]
[1722351078502,2.26556034,3319.1,3318.1,2.4954]
[1722351078503,4.45943495,3318.9,3318.3,3.01351]
[1722351078736,3.01286,3319.1,3318.5,3.01339]
[1722351078939,1.56139236,3319.5,3318.9,3.01304]
[1722351079135,1.44706121,3319.4,3318.3,3.01352]
[1722351079324,3.01301,3319.0,3318.4,3.01348]
[1722351079523,1.60320045,3319.4,3318.6,3.01325]
[1722351079524,3.16877924,3319.4,3318.6,3.01325]
[1722351079724,1.44713214,3319.3,3318.6,3.01325]
[1722351080054,1.44713214,3319.3,3318.6,3.01324]
[1722351080353,1.44713214,3319.3,3318.5,3.01336]
[1722351080354,3.01286,3319.1,3318.5,3.01336]
[1722351080561,3.01317,3318.8,3318.3,3.01358]
[1722351080724,3.013,3319.0,3318.4,3.01344]
[1722351080923,3.01319,3318.8,3318.2,3.0136]
[1722351081131,1.44708971,3318.9,3318.0,0.301381]
[1722351081132,0.3013,3318.9,3318.0,0.301381]
[1722351081312,3.31439,3318.9,3318.3,0.07258259]
[1722351081513,0.3013,3318.9,3317.8,3.01396]
[1722351081710,4.46027223,3318.8,3318.4,0.07253839]
[1722351082012,3.01282,3319.2,3318.6,3.01326]
[1722351082359,1.44682747,3319.1,3318.5,0.0724942]
[1722351082602,3.01276,3319.3,3318.7,3.08562583]
[1722351082895,5.53379177,3319.2,3318.6,0.07245001]
[1722351083093,6.16877924,3319.4,3318.6,0.07245001]
[1722351083094,3.16877924,3319.4,3318.8,3.08544164]
[1722351083297,1.44675511,3319.3,3318.7,0.07240583]
[1722351083602,1.44675511,3319.3,3318.9,0.07231746]
[1722351083892,4.57216586,3319.6,3318.9,3.01299]
[1722351083893,3.01251,3319.5,3318.9,3.01299]
[1722351084063,1.44702613,3319.4,3318.9,3.01299]
[1722351084268,4.45964613,3319.4,3319.0,0.07227329]
[1722351084451,3.01278,3319.2,3318.2,3.0]
[1722351084652,0.45721659,3319.5,3319.1,0.07222911]
[1722351084856,0.45721659,3319.5,3318.9,3.01299]
[1722351084857,1.44731597,3319.4,3318.9,3.01299]
[1722351085053,4.45995597,3319.4,3319.2,0.07218494]
[1722351085399,1.44730377,3319.3,3318.7,3.01315]
[1722351085579,3.01256,3319.5,3316.9,3.64634127]
[1722351085580,8.86453052,3319.2,3317.4,7.37]
[1722351085783,3.01376,3318.2,3317.6,3.01415]
[1722351085959,3.01377,3318.1,3317.5,0.06551994]
[1722351086312,3.0136,3318.3,3317.7,3.01411]
[1722351086452,1.55925599,3318.8,3317.8,3.01403]
[1722351086653,3.01365,3318.3,3317.7,3.01408]
[1722351086856,3.56328,3318.7,3317.9,3.07917388]
[1722351087057,4.45916508,3318.6,3317.9,3.0139]
[1722351087366,9.7652,3319.2,3318.0,0.12550424]
[1722351087581,3.01309,3318.9,3318.3,3.01354]
[1722351087956,3.01309,3318.9,3318.4,0.06518863]
[1722351088500,3.01313,3318.8,3318.4,0.06518863]
[1722351088665,6.0268,3318.5,3318.4,0.06518863]
[1722351088859,6.0268,3318.5,3317.7,3.01413]
[1722351088860,3.01351,3318.4,3317.7,3.01413]
[1722351089058,3.01351,3318.4,3317.7,3.01405]
[1722351089358,3.01351,3318.4,3317.8,3.01402]
[1722351089895,3.01337,3318.6,3317.9,3.01392]
[1722351090218,4.57198926,3319.1,3318.5,3.01335]
[1722351090371,1.44599766,3319.0,3318.4,0.06026387]
[1722351090555,4.45894766,3319.0,3318.4,3.01348]
[1722351090754,4.45895101,3318.9,3318.2,3.01367]
[1722351090956,4.45899101,3318.8,3318.2,3.01367]
[1722351091150,3.76015777,3319.0,3317.9,7.671392]
[1722351091397,3.01286,3319.1,3318.5,3.01339]
[1722351091565,3.01287,3319.1,3318.6,3.01327]
[1722351091770,1.86031326,3319.4,3318.4,3.01349]
[1722351091771,0.301254,3319.4,3318.4,3.01349]
[1722351091996,3.01299,3319.0,3318.4,6.02694]
[1722351092213,5.00891935,3319.3,3318.5,3.01333]
[1722351092214,3.01286,3319.1,3318.5,3.01333]
[1722351092362,0.55,3319.3,3318.5,3.01333]
[1722351092697,3.013,3319.0,3318.5,3.01333]
[1722351092930,3.01328,3318.7,3318.0,3.01379]
[1722351093066,3.01328,3318.7,3317.9,7.37]
[1722351093067,3.01326,3318.7,3317.9,7.37]
[1722351093255,3.01347,3318.5,3317.9,7.37]
[1722351093455,3.01347,3318.5,3318.0,3.01381]
[1722351093726,3.01347,3318.5,3317.9,7.37]
[1722351093895,3.01327,3318.7,3318.0,3.01381]
[1722351094162,3.563487,3318.8,3318.2,6.02725]
[1722351094362,3.01301,3319.0,3317.9,10.38394]
[1722351094792,4.41289827,3319.3,3318.2,3.01367]
[1722351094793,3.01319,3318.8,3318.2,3.01367]
[1722351095158,4.41289827,3319.3,3317.9,10.3839]
[1722351095364,3.01347,3318.5,3318.0,3.01385]
[1722351095567,3.01362,3318.3,3317.9,7.37]
[1722351095863,3.01362,3318.3,3317.6,12.45]
[1722351095864,3.01362,3318.3,3317.6,3.01422]
[1722351096106,3.01362,3318.3,3317.7,3.01409]
[1722351096265,3.01347,3318.5,3317.7,0.06343483]
[1722351096461,3.01325,3318.7,3318.1,3.01372]
[1722351096774,3.01325,3318.7,3318.2,0.06327513]
[1722351096775,3.56336,3318.6,3318.2,0.06327513]
[1722351096974,3.01359,3318.3,3318.2,0.06327513]
[1722351097399,6.02718,3318.3,3318.2,0.0632828]
[1722351097630,3.01359,3318.3,3317.7,3.01407]
[1722351097834,3.01359,3318.3,3318.2,0.0632828]
[1722351098140,3.01381,3318.1,3317.5,3.01427]
[1722351098495,3.01368,3318.2,3317.6,6.02836]
[1722351098690,3.01368,3318.2,3317.7,3.01413]
[1722351099098,3.01365,3318.3,3317.7,3.01413]
[1722351099711,3.01384,3318.1,3317.6,3.01422]
[1722351099924,3.01365,3318.3,3317.4,3.01435]
[1722351100129,3.01409,3317.8,3317.3,7.37]
[1722351100344,6.02852,3317.6,3317.3,7.37]
[1722351100491,3.01423,3317.6,3317.0,3.01476]
[1722351100698,3.01423,3317.6,3316.8,10.38495]
[1722351100699,3.0144,3317.4,3316.8,10.38495]
[1722351101131,3.01459,3317.2,3316.8,7.37]
[1722351101701,3.01441,3317.4,3316.8,3.01494]
[1722351101899,3.01423,3317.6,3317.0,3.01471]
[1722351102208,3.014,3317.9,3317.2,3.0145]
[1722351102411,3.01392,3318.0,3317.4,3.01436]
[1722351102616,3.01405,3317.8,3317.2,3.01454]
[1722351102831,3.01405,3317.8,3317.2,3.01453]
[1722351103033,0.851392,3317.9,3317.2,3.01453]
[1722351103212,3.0137,3318.2,3317.5,3.01425]
[1722351103723,3.01396,3317.9,3317.1,3.01461]
[1722351103901,2.4516,3318.4,3317.6,0.06370901]
[1722351103902,3.01392,3318.0,3317.6,0.06370901]
[1722351104138,3.01372,3318.2,3317.5,3.01431]
[1722351104345,3.01372,3318.2,3317.4,3.01433]
[1722351104346,3.01372,3318.2,3317.7,0.06366479]
[1722351104509,3.01372,3318.2,3317.6,3.01421]
[1722351104510,3.01395,3317.9,3317.6,0.06370901]
[1722351104712,3.315212,3318.1,3317.8,0.06362058]
[1722351105010,3.315212,3318.1,3317.9,0.06357638]
[1722351105011,0.301372,3318.1,3317.9,0.06357638]
[1722351105215,3.01388,3318.0,3317.9,0.06357638]
[1722351105455,3.01388,3318.0,3317.4,3.01433]
[1722351105761,3.01388,3318.0,3317.9,0.06357638]
[1722351105934,3.616642,3318.0,3317.4,3.01439]
[1722351106098,3.01388,3318.0,3317.4,3.01439]
[1722351106293,3.01374,3318.2,3317.6,3.01414]
[1722351106500,0.55,3318.1,3317.6,3.01416]
[1722351106832,0.55,3318.1,3317.7,0.06366479]
[1722351107144,3.01381,3318.1,3317.6,3.01421]
[1722351107302,3.01381,3318.1,3317.8,0.06362058]
[1722351107632,3.01381,3318.1,3317.6,3.01421]
[1722351107838,3.01381,3318.1,3317.9,0.06364027]
[1722351108049,3.01381,3318.1,3317.6,3.01421]
[1722351108255,0.55,3318.2,3317.7,3.01413]
[1722351108600,3.56368,3318.2,3317.8,0.06368448]
[1722351108798,3.01381,3318.1,3317.5,3.01426]
[1722351108994,3.01381,3318.1,3317.6,0.0637729]
[1722351109639,3.01377,3318.1,3317.7,0.06372869]
[1722351109808,1.207732,3318.2,3317.7,0.06372869]
[1722351110012,1.207732,3318.2,3317.7,3.07784869]
[1722351110199,0.55,3318.2,3317.7,3.07784869]
[1722351110430,0.55,3318.2,3317.7,3.07780869]
[1722351110596,3.01346,3318.5,3317.9,3.01391]
[1722351110597,3.5635,3318.4,3317.9,3.01391]
[1722351110816,3.5635,3318.4,3318.0,0.06359606]
[1722351111142,0.55,3318.4,3318.0,3.07742606]
[1722351111803,0.55,3318.4,3318.0,0.06359606]
[1722351111804,3.906341,3318.4,3318.0,0.06359606]
[1722351112002,3.01369,3318.2,3318.0,0.06359606]
[1722351112237,3.01369,3318.2,3317.5,3.0143]
[1722351112238,3.01377,3318.1,3317.5,3.0143]
[1722351112581,3.01369,3318.2,3317.4,3.01434]
[1722351112582,3.01369,3318.2,3318.1,0.06356466]
[1722351112716,3.56369,3318.2,3317.5,3.01426]
[1722351112920,3.7606931,3318.2,3318.1,0.06357999]
[1722351113131,4.3106931,3318.2,3317.6,3.01415]
[1722351113439,0.55,3318.1,3317.7,3.0141]
[1722351113644,6.369851,3318.4,3317.3,3.01448]
[1722351113645,3.356341,3318.4,3317.3,3.01448]
[1722351113816,3.01342,3318.5,3317.9,3.01391]
[1722351113999,0.55,3318.4,3317.9,3.01391]
[1722351114205,0.55,3318.4,3318.1,3.01376]
[1722351114442,0.55,3318.4,3317.6,0.06027761]
[1722351114443,0.55,3318.5,3317.9,3.01389]
[1722351114615,6.02688,3318.5,3317.9,3.01389]
[1722351114822,3.5635,3318.4,3317.9,3.01389]
[1722351115234,0.55,3318.4,3317.9,3.0139]
[1722351115448,0.55,3318.4,3318.0,3.0138]
[1722351115654,0.55,3318.4,3318.1,3.0137]
[1722351115852,3.01333,3318.6,3318.1,3.0137]
[1722351116065,0.83427,3318.7,3318.4,3.01345]
[1722351116218,7.47,3319.1,3318.5,3.01333]
[1722351116409,1.44553662,3319.0,3318.5,3.01333]
[1722351116609,4.45848662,3319.0,3318.5,3.01333]
[1722351116850,1.44553662,3318.9,3318.5,3.01333]
[1722351117158,1.44553662,3318.9,3318.5,3.0134]
[1722351117325,1.44553662,3318.9,3318.0,3.01383]
[1722351117326,1.44553662,3318.8,3318.3,3.01358]
[1722351117526,1.20416176,3319.1,3318.2,2.356]
[1722351117527,1.44553662,3318.7,3318.2,2.356]
[1722351117849,3.01287,3319.1,3318.5,3.01335]
[1722351118010,3.01305,3318.9,3318.4,3.01349]
[1722351118338,1.44600329,3318.8,3318.4,3.01349]
[1722351119320,1.44600329,3318.8,3318.2,5.36967]
[1722351119521,3.01324,3318.7,3318.2,5.36967]
[1722351119728,1.44600329,3318.6,3318.3,3.01352]
[1722351119915,1.44600329,3318.5,3318.4,3.0135]
[1722351120130,3.01304,3318.9,3318.4,3.0135]
[1722351120470,3.01324,3318.7,3318.2,3.01366]
[1722351120677,1.44573676,3318.6,3318.2,3.01366]
[1722351120882,1.44573676,3318.5,3318.2,3.01363]
[1722351121168,3.82671279,3318.9,3318.4,3.01349]
[1722351121486,1.44579997,3318.8,3318.2,3.01359]
[1722351121634,1.44579997,3318.8,3318.3,3.01354]
[1722351122472,1.44579997,3318.8,3318.4,3.01349]
[1722351123062,1.44579997,3318.8,3318.3,3.01358]
[1722351123392,3.01331,3318.6,3318.1,3.0137]
[1722351123531,1.44579997,3318.5,3317.2,4.8106]
[1722351123907,3.01376,3318.2,3317.7,3.01407]
[1722351124037,3.01376,3318.2,3317.6,3.01422]
[1722351124038,4.45960997,3318.1,3317.6,3.01422]
[1722351124241,1.44579997,3318.0,3317.4,3.01435]
[1722351124465,1.44579997,3317.9,3317.6,3.01421]
[1722351124635,3.01383,3318.1,3317.6,6.02837]
[1722351124855,1.44533239,3318.0,3317.8,3.01404]
[1722351125048,4.57462938,3318.5,3317.9,3.01395]
[1722351125250,1.99463889,3318.4,3317.9,3.01395]
[1722351125447,1.44463889,3318.3,3318.0,3.0138]
[1722351125652,2.51952291,3318.8,3318.1,3.01369]
[1722351125865,2.51952291,3318.8,3318.2,3.01359]
[1722351125866,1.44456655,3318.7,3318.2,3.01359]
[1722351126075,1.44456655,3318.7,3318.0,3.0138]
[1722351126336,3.01331,3318.6,3318.3,0.06328461]
[1722351126532,4.45796655,3318.5,3317.7,3.01412]
[1722351126784,3.01369,3318.2,3317.7,3.01413]
[1722351126934,1.44456655,3318.1,3317.5,3.01425]